Cogmind - Beta 11 *** ADVENTURER MODE // 2022.03.26 @ 14:13:15 Player: Ms Vella Result: Destroyed by as-49162 with Assembled Heavy Rifle Performance ------------- Evolutions (0) 0 Regions Visited (2) 400 Robots Destroyed (18) 90 Value Destroyed (530) 530 Prototype IDs (2) 40 Alien Tech Used (0) 0 Bonus (0) 0 TOTAL SCORE: 1060 Bonus ------- None Cogmind --------- Core Integrity 0/250 Matter 205/450 Energy 125/125 System Corruption 0% Temperature Cool (12) Movement Walking (190) Ox1 Location -10/Mines Parts ------- > --- POWER (1) -------- Light Ion Engine > --- PROPULSION (2) --- Aluminum Leg Aluminum Leg > --- UTILITY (2) ------ Large Storage Unit Large Matter Pod > --- WEAPON (2) ------- Light Cannon Light Cannon > --- INVENTORY (15) --- Aluminum Leg Large Storage Unit High-capacity Matter Pod (81) Targeting Computer Core Shielding Power Shielding Beam Cannon Light Cannon Light Cannon Peak State ------------ > --- POWER ------------ Ion Engine > --- PROPULSION ------- Aluminum Leg Aluminum Leg > --- UTILITY ---------- Large Storage Unit Large Matter Pod > --- WEAPON ----------- Light Cannon Light Cannon > --- INVENTORY -------- Light Ion Engine Aluminum Leg Aluminum Leg Large Matter Pod Large Matter Pod Beam Cannon Light Cannon Light Cannon Light Cannon Grenade Launcher [Rating: 8] Favorites ----------- Power Ion Engine Engine Ion Engine Propulsion Aluminum Leg Leg Aluminum Leg Utility Large Matter Pod Storage Large Matter Pod Weapon Light Cannon Ballistic Gun Light Assault Rifle Ballistic Cannon Light Cannon Launcher Grenade Launcher Build | -11 -10 -10 ------- Run | Scr Mat Min Slots Evolved . | . . . Power . | . . . Propulsion . | . . . Utility . | . . . Weapon . | . . . Parts Attached 21 | . 10 11 Power 3 | . 2 1 Engine 3 | . 2 1 Core . | . . . Reactor . | . . . Propulsion 5 | . 3 2 Treads . | . . . Leg 5 | . 3 2 Wheel . | . . . Hover . | . . . Flight . | . . . Utility 3 | . 3 . Device . | . . . Storage 3 | . 3 . Processor . | . . . Hackware . | . . . Protection . | . . . Artifact . | . . . Weapon 10 | . 2 8 Energy Gun . | . . . Energy Cannon . | . . . Ballistic Gun . | . . . Ballistic Cannon 7 | . 2 5 Launcher 3 | . . 3 Special Weapon . | . . . Impact Weapon . | . . . Slashing Weapon . | . . . Piercing Weapon . | . . . Special Melee Weapon . | . . . Unidentified Prototypes . | . . . Parts Lost 7 | . 1 6 Power 2 | . 1 1 Propulsion 2 | . . 2 Utility . | . . . Weapon 3 | . . 3 Highest Loss Streak 5 | . 1 5 To Critical Strikes . | . . . Average Slot Usage (%) 98 | . 98 98 Engine 13 | . 14 13 Leg 27 | . 27 27 Storage 27 | . 27 28 Ballistic Gun 9 | . 16 . Ballistic Cannon 17 | . 11 26 Naked Turns . | . . . Heaviest Build 34 | 10 34 34 Greatest Support 20 | 20 20 20 Greatest Overweight (x) 1 | . 1 1 Average Overweight (x) . | . . 1 Largest Inventory Capacity 15 | 8 15 15 Average Capacity 12 | 8 11 15 Most Carried 15 | 6 12 15 Average Carried 10 | 6 8 13 Final Capacity 15 | 8 15 15 Final Carried 11 | 6 11 9 Class Distribution -------------------- 100% | Mutant Dominant Class ---------------- Mutant | -10/Materials Mutant | -10/Mines Resources | -11 -10 -10 ----------- Run | Scr Mat Min Matter Collected 916 | 200 341 375 Remotely . | . . . Salvage Created 576 | . 321 255 Parts 36 | . 17 19 Haulers Intercepted . | . . . Recyclers Shooed 4 | . 4 . Parts Field Recycled . | . . . Retrieved Matter . | . . . Parts Self-Destructed . | . . . Prevented . | . . . Kills | -11 -10 -10 ------- Run | Scr Mat Min Combat Hostiles Destroyed 30 | . 7 23 Guns 7 | . 7 . Cannons 12 | . . 12 AOE 11 | . . 11 Classes Destroyed 7 | . 3 4 Builder 1 | . . 1 Recycler 1 | . 1 . Swarmer 6 | . 3 3 Grunt 6 | . 4 2 Sentry 2 | . . 2 Demolisher 2 | . . 2 Assembled 14 | . . 14 Best Kill Streak 12 | . 4 12 Combat Bots Only 11 | . 3 11 Max Kills in Single Turn 2 | . 1 2 Gunslinging . | . . . Exploded 2 | . . 2 Melee . | . . . Uniques/NPCs Destroyed . | . . . Combat | -11 -10 -10 -------- Run | Scr Mat Min Damage Taken 1417 | . 430 987 Core 251 | . 77 174 Absorbed by Shields . | . . . Regen/Repaired (Parts) 132 | . 132 . Core Remaining (%) 100 | 100 . . Volleys Fired 87 | . 48 39 Largest 2 | . 2 2 Hottest 70 | . 40 70 Shots Fired 160 | . 96 64 Gun 96 | . 96 . Cannon 52 | . . 52 Launcher 12 | . . 12 Special . | . . . Kinetic 148 | . 96 52 Thermal . | . . . Explosive 12 | . . 12 Electromagnetic . | . . . Robot Hit Streak 18 | . 18 13 Robot Miss Streak 4 | . 4 2 Penetration Max . | . . . Secondary Targets 2 | . 2 . Max Gunslinging Chain 1 | . 1 . Shots Hit Robots 120 | . 79 41 Core Hits 60 | . 19 41 Critical Kills . | . . . Critical Parts Destroyed . | . . . Critical Strikes 1 | . . 1 Blast 1 | . . 1 Melee Attacks . | . . . Impact . | . . . Slashing . | . . . Piercing . | . . . Sneak Attacks . | . . . Combat Hostiles . | . . . Follow-up Attacks . | . . . Damage Inflicted 1944 | . 654 1290 Guns 654 | . 654 . Cannons 560 | . . 560 Explosions 730 | . . 730 Melee . | . . . Ramming . | . . . Kinetic 1214 | . 654 560 Thermal 78 | . . 78 Explosive 652 | . . 652 Electromagnetic . | . . . Impact . | . . . Slashing . | . . . Piercing . | . . . Highest Corruption . | . . . Average Corruption . | . . . Corruption Purged . | . . . Corruption Blocked . | . . . Overload Shots . | . . . Overflow Damage 72 | . . 72 Projectiles 15 | . . 15 Explosions 57 | . . 57 Melee . | . . . Knockbacks 6 | . . 6 Impact . | . . . Kinetic 6 | . . 6 Secondary . | . . . Self-Inflicted Damage 65 | . . 65 Shots 3 | . . 3 Rammed . | . . . Targets Rammed . | . . . Kicked . | . . . Crushed . | . . . Highest Temperature 63 | . 27 63 Average Temperature 17 | . 11 21 Received Heat Transfer 330 | . 267 63 Siege Activations . | . . . Robots Corrupted . | . . . Combat Hostiles . | . . . Parts Fried . | . . . Impact Corruptions . | . . . Robots Melted . | . . . Combat Hostiles . | . . . Parts Melted . | . . . Heat Transferred 100 | . . 100 Parts Sabotaged . | . . . Parts Stolen . | . . . Parts Stripped . | . . . Power Chain Reactions . | . . . Missiles Intercepted . | . . . Alert | -11 -10 -10 ------- Run | Scr Mat Min Peak Influence 194 | . 194 188 Initial 4 | . . 4 Average 72 | . 34 129 Maximum Alert Level . | . . . Low Security (%) 100 | 100 100 100 Level 1 . | . . . Level 2 . | . . . Level 3 . | . . . Level 4 . | . . . Level 5 . | . . . High Security . | . . . Max Security . | . . . Squads Dispatched . | . . . Investigation . | . . . Extermination . | . . . Reinforcement . | . . . Assault . | . . . Garrison . | . . . Intercept . | . . . Searches Triggered . | . . . Construction Impeded . | . . . Haulers Reinforced . | . . . Active Scanning Responses . | . . . Cargo Convoy Interrupts . | . . . Stealth | -11 -10 -10 --------- Run | Scr Mat Min Distress Signals 1 | . 1 . Communications Jammed . | . . . Distress Signals . | . . . Times Spotted 38 | . 12 26 Peak Tracking Total 7 | . 4 7 Tactical Retreats 1 | . . 1 Traps | -11 -10 -10 ------- Run | Scr Mat Min Traps Triggered 1 | . 1 . Indirectly . | . . . Trap Hack Attempts . | . . . Triggered . | . . . Disarmed . | . . . Reprogrammed . | . . . Reused . | . . . Traps Extracted . | . . . Installed . | . . . Triggered . | . . . Machines | -11 -10 -10 ---------- Run | Scr Mat Min Machines Disabled 2 | . . 2 Max in Single Turn 1 | . . 1 Machines Sabotaged . | . . . Garrisons Compromised . | . . . Overloaded Fab Kills . | . . . Hacking | -11 -10 -10 --------- Run | Scr Mat Min Machines Accessed 3 | . 3 . Terminals 2 | . 2 . Fabricators . | . . . Repair Stations 1 | . 1 . Recycling Units . | . . . Scanalyzers . | . . . Garrison Access . | . . . Total Hacks 12 | . 12 . Successful 8 | . 8 . Failed 4 | . 4 . Catastrophic . | . . . Database Lockouts . | . . . Manual 2 | . 2 . Terminals 6 | . 6 . Fabricators . | . . . Repair Stations 6 | . 6 . Recycling Units . | . . . Scanalyzers . | . . . Garrison Access . | . . . Terminal Hacks 1 | . 1 . Prototype ID Bank 1 | . 1 . Fabricator Hacks . | . . . Repair Station Hacks 6 | . 6 . Scan Component 3 | . 3 . Repair 3 | . 3 . Recycling Unit Hacks . | . . . Scanalyzer . | . . . Garrison Access Hacks . | . . . Unauthorized Hacks 1 | . 1 . Terminals 1 | . 1 . Botnet 1 | . 1 . Fabricators . | . . . Repair Stations . | . . . Recycling Units . | . . . Scanalyzers . | . . . Garrison Access . | . . . Data Cores Recovered . | . . . Used . | . . . Hacking Detections 2 | . 2 . Full Trace Events . | . . . Feedback Events . | . . . Feedback Blocked . | . . . Robot Schematics Acquired . | . . . Robots Built . | . . . Authchips . | . . . Time . | . . . Total Robot Build Rating . | . . . Part Schematics Acquired . | . . . Parts Built . | . . . Authchips . | . . . Time . | . . . Total Part Build Rating . | . . . Parts Repaired 3 | . 3 . Time 78 | . 78 . Parts Recycled . | . . . Recycled Matter . | . . . Retrieved Matter . | . . . Retrieved Components . | . . . Parts Scanalyzed . | . . . Part Schematics Acquired . | . . . Parts Damaged . | . . . Bothacking | -11 -10 -10 ------------ Run | Scr Mat Min Used RIF Installer . | . . . Robots Hacked . | . . . Non-combat . | . . . Combat . | . . . Robot Hacks Applied . | . . . Relay Couplers Released . | . . . Fabnet Peak Effective % . | . . . Robots Rewired . | . . . Allies Hacked . | . . . Hacks Repelled . | . . . Allies | -11 -10 -10 -------- Run | Scr Mat Min Total Allies . | . . . Largest Group . | . . . Highest-Rated Group . | . . . Highest-Rated Ally . | . . . Total Orders . | . . . Ally Attacks . | . . . Total Damage . | . . . Kills . | . . . Allies Corrupted . | . . . Allies Melted . | . . . Intel | -11 -10 -10 ------- Run | Scr Mat Min Robot Analysis Total . | . . . Derelict Logs Recovered 2 | . . 2 Drone Launches . | . . . Drone Recoveries . | . . . Exploration | -11 -10 -10 ------------- Run | Scr Mat Min Turns Passed 1675 | 3 997 675 Spaces Moved 789 | 3 494 292 Core . | . . . Treads . | . . . Legs 789 | 3 494 292 Wheels . | . . . Hover . | . . . Flight . | . . . Fastest Speed 120 | 120 120 190 Average Speed 164 | 120 150 190 Slowest Speed 190 | 120 190 190 Overloaded Moves . | . . . Propulsion Burnouts . | . . . Robots Hopped . | . . . Cave-ins Triggered . | . . . Exploration Rate (%) 42 | 2 62 64 Regions Visited 2 Branch Regions 1 Pre-discovered Areas . | . . . Known Exits Taken . | . . . Unknown Exits Taken 2 | 1 1 . Scrap Searched 2 | . . 2 Spaces Dug . | . . . Terrain Destroyed 89 | . . 89 Melee . | . . . Projectile . | . . . AOE 89 | . . 89 Terrain Rammed . | . . . Walls Destroyed . | . . . Machines Disabled . | . . . Actions | -11 -10 -10 --------- Run | Scr Mat Min Total 1025 | 2 675 348 Wait 98 | . 98 . Move 787 | 2 493 292 Hop . | . . . Pick Up 19 | . 14 5 Fast Attach 5 | . 5 . Attach 7 | . 1 6 Detach . | . . . Swap 9 | . 4 5 Drop 13 | . 12 1 Fire 87 | . 48 39 Melee . | . . . Ram . | . . . Kick . | . . . Crush . | . . . Escape Stasis . | . . . Rewire . | . . . Trap . | . . . Miscellaneous . | . . . Route ------- -11/Scrapyard -10/Materials (discovered 3 exits: [*Mat x2] / [*Min]) -10/Mines (discovered 1 exit: [*Mat]) History --------- Turn | Location | Event 1 | -11/Scrapyard | Discovered new exit (range 1) 4 | -11/Scrapyard | Entered Materials 190 | -10/Materials | Discovered new exit (range 15) 332 | -10/Materials | Build established: Mutant 478 | -10/Materials | Discovered new exit (range 12) 581 | -10/Materials | Discovered new exit (range 16) 748 | -10/Materials | Repaired Aluminum Leg 776 | -10/Materials | Repaired Aluminum Leg 803 | -10/Materials | Repaired Aluminum Leg 1001 | -10/Materials | Entered Mines 1033 | -10/Mines | Met a Derelict bent on vengeance 1177 | -10/Mines | Learned Materials emergency access door positions 1277 | -10/Mines | Discovered new exit (range 13) 1412 | -10/Mines | Learned Materials emergency access door positions 1449 | -10/Mines | Assembled infested the area 1502 | -10/Mines | Core integrity fell below 50% 1509 | -10/Mines | Core integrity fell below 20% 1542 | -10/Mines | Lost 5 parts (1p2n2w) 1582 | -10/Mines | Destroyed 11 combat bots 1676 | -10/Mines | Destroyed by as-49162 with Assembled Heavy Rifle Last Messages --------------- 01577_ K-01 Serf collects debris. 01579_ The unstable cave ceiling collapses. 01580_ K-01 Serf collects debris. 01592_ Acquired 9 matter. 01598_ The unstable cave ceiling collapses. 01599_ K-01 Serf collects debris. 01601_ The unstable cave ceiling collapses. 01602_ Acquired 8 matter. 01603_ K-01 Serf collects debris. 01612_ The unstable cave ceiling collapses. 01613_ K-01 Serf collects debris. 01653_ U-05 Engineer lays Concrete. 01655_ K-01 Serf collects debris. 01657_ U-05 Engineer builds a Wall. 01659_ K-01 Serf collects debris. 01660_ U-05 Engineer lays Concrete. 01662_ K-01 Serf collects debris. 01663_ U-05 Engineer builds a Wall. 01666_ K-01 Serf collects debris. 01672_ as-24173 destroyed. Map ----- +----------------------------------------------------+ | | | | | | | | | | | | | | | | | | | | | | | | | ?????????????????????????????????????????????????? | | ?????????????????????????????????????????????????? | | ????????????????????????????##???????????????????? | | ???????????????????????????# ##??????????????????? | | ??????????????????????????? *???????????????????? | | ???????? ???###???????????# %???????????????????? | | ????????? ?? #?##????#### %????????????????????? | | ????????? ### ## #??### % % ????????????????????? | | ??#??????# % %???? !?????????????????????? | | ## ?????## %# #????# *%?????????????????????? | | # ????## # %# #????# a#?????????????????????? | | ????# #?????# #?????????????????????? | | #??#### #??????# #?????????????????????? | | ##### # %### #####???#@ ##????????????????????? | | ## #### ## # # ##??## #????????????????????? | | % ### # ##### ##???????????????????? | | #%### # # ## ##??????????????????? | | ## k #??????????????????? | | % * #??????????????????? | | # # ##### ## ##??????????????????? | | # ## # # ##?###???????????????????? | | ! "# ## # #????????????????????????? | | ""?## ######## ## #????????????????????????? | | ""???# ### ##### #????????????????????????? | | #????# #### #????????????????????????? | | #????## ##????????????????????????? | | #?????## ##?????????????????????????? | | ##?????## ##??????????????????????????? | | #??????### ##???????????????????????????? | | #????????## ###????????????????????????????? | | #?????????## ##??????????????????????????????? | | #??????????######???????????????????????????????? | | #?????????????????? ????????????????????????????? | | #???####?????????? ??????????????????????????? | | #??## ##???????# ?????????????????????????? | | ##??# #??????? ?????????????????????????? | | #???# #??????? ??????????????????????????? | | #???# ##????? ???????????????????????????? | +----------------------------------------------------+ Best States ------------- Heat Dissipation 25 Energy Generation 10 Energy Capacity 250 Matter Stores 450 Matter Capacity 450 Sight Range 16 Terrain Scan Density 10 Resistance: KI 20 Resistance: TH 20 Resistance: EX 20 Resistance: EM 20 Resistance: I 20 Resistance: S 20 Resistance: P 20 Evasion (%) 55 Offensive Hacking 10 Item Schematics ----------------- None Robot Schematics ------------------ None Fabricated ------------ Nothing Alien Tech Used ----------------- None Achievements -------------- None Challenges ------------ None Game ------ Seed DynamicCompactSheargun Manual? 0 Play Time 00:20:53 Cumulative 795.4 hours Start 2022.03.26 @ 13:20:36 End 2022.03.26 @ 14:13:15 Sessions 1 Manual Loads 0 Difficulty Adventurer Special Mode None Game No. 149 Rogue 1 Adventurer 148 Explorer 0 Win Type - Total 3 Types 3/0/0/0/0/0/0/0/0 Lore% 64 Gallery% 75 Achievement% 61 Wizard Run 0 Options --------- ASCII 0 Keyboard 0 Movement Mouse Keybinds 0 Fullscreen 0 Font 16/Smallcaps Map View 76x50 Tactical HUD 1 Map Filters NONE Filters NONE Steam 1 RUN: d4f1acb9-1ce2-46ea-a4e5-7660f1cd1731